Cogmind - Beta 14 @@@ ROGUE MODE // 2024.12.05 @ 15:29:34 Player: hanna Result: Destroyed by S-10 Pest with Light Assault Rifle Performance ------------- Evolutions (2) 1000 Regions Visited (3) 600 Robots Destroyed (28) 140 Value Destroyed (761) 761 Prototype IDs (1) 20 Alien Tech Used (0) 0 Bonus (0) 0 TOTAL SCORE: 2521 Bonus ------- None Cogmind --------- Core Integrity 0/550 Matter 208/300 Energy 99/100 System Corruption 6% Temperature Cool (0) Movement Core (50) Location -8/Materials Parts ------- > --- POWER (2) -------- (None) > --- PROPULSION (2) --- (None) > --- UTILITY (5) ------ (None) > --- WEAPON (2) ------- Enhanced Autogun > --- INVENTORY (5) ---- (None) Peak State ------------ > --- POWER ------------ Light Ion Engine Improved Ion Engine > --- PROPULSION ------- Armored Treads Armored Treads > --- UTILITY ---------- Small Storage Unit Sensor Array Signal Interpreter Hardened Light Armor Plating > --- WEAPON ----------- Particle Gun > --- INVENTORY -------- Ion Engine Light Treads Armored Treads Armored Treads Light Assault Rifle Light Assault Rifle [Rating: 17] Favorites ----------- Power Ion Engine Engine Ion Engine Power Core Light Nuclear Core Propulsion Armored Treads Treads Armored Treads Utility Small Storage Unit Device Sensor Array Storage Small Storage Unit Processor Signal Interpreter Protection Hardened Light Armor Plating Weapon Light Assault Rifle Energy Gun Particle Gun Ballistic Gun Light Assault Rifle Build | -11 -10 -9 -8 ------- Run | Yrd Mat Mat Mat Slots Evolved 4 | . . 2 2 Power 1 | . . . 1 Propulsion . | . . . . Utility 3 | . . 2 1 Weapon . | . . . . Parts Attached 27 | 6 2 6 13 Power 7 | 1 1 1 4 Engine 6 | 1 1 1 3 Core 1 | . . . 1 Reactor . | . . . . Propulsion 8 | 2 . 2 4 Treads 8 | 2 . 2 4 Leg . | . . . . Wheel . | . . . . Hover . | . . . . Flight . | . . . . Utility 5 | 1 1 2 1 Device 2 | . 1 1 . Storage 1 | 1 . . . Processor 1 | . . 1 . Hackware . | . . . . Protection 1 | . . . 1 Artifact . | . . . . Weapon 7 | 2 . 1 4 Energy Gun 2 | . . 1 1 Energy Cannon . | . . . . Ballistic Gun 5 | 2 . . 3 Ballistic Cannon . | . . . . Launcher . | . . . . Special Weapon . | . . . . Impact Weapon . | . . . . Slashing Weapon . | . . . . Piercing Weapon . | . . . . Special Melee Weapon . | . . . . Unidentified Prototypes 1 | . . . 1 Parts Lost 15 | . . . 15 Power 4 | . . . 4 Propulsion 4 | . . . 4 Utility 4 | . . . 4 Weapon 3 | . . . 3 Highest Loss Streak 5 | . . . 5 To Critical Strikes . | . . . . Average Slot Usage (%) 74 | . 91 81 57 Engine 10 | . 14 11 7 Treads 21 | . 28 22 16 Device 8 | . 5 15 3 Storage 10 | . 14 11 7 Processor 4 | . . 5 6 Protection 1 | . . . 3 Energy Gun 4 | . . 4 6 Ballistic Gun 12 | . 28 12 3 Peak Build Rating 17 | 6 7 13 17 Average Rating 10 | 4 6 12 11 On Entrance 6 | . 6 7 13 Naked Turns 5 | . . . 5 Heaviest Build 26 | 12 13 18 26 Greatest Support 40 | 40 40 40 40 Greatest Overweight (x) 1 | 1 . . . Average Overweight (x) . | . . . . Largest Inventory Capacity 8 | 8 8 8 8 Average Capacity 7 | 7 8 8 7 Most Carried 7 | 5 5 7 6 Average Carried 4 | 2 4 5 3 Final Capacity 8 | 8 8 8 5 Final Carried 6 | 4 5 6 . Class Distribution -------------------- 100% | Mutant Dominant Class ---------------- Mutant | -10/Materials Mutant | -9/Materials Mutant | -8/Materials Resources | -11 -10 -9 -8 ----------- Run | Yrd Mat Mat Mat Matter Collected 543 | 262 84 108 89 Remotely . | . . . . Salvage Created 1061 | 92 382 147 440 Parts 44 | 2 11 11 20 Haulers Intercepted 1 | . 1 . . Recyclers Shooed 2 | . 2 . . Parts Field Recycled . | . . . . Retrieved Matter . | . . . . Parts Self-Destructed . | . . . . Prevented . | . . . . Kills | -11 -10 -9 -8 ------- Run | Yrd Mat Mat Mat Combat Hostiles Destroyed 23 | . 8 5 10 Guns 23 | . 8 5 10 Classes Destroyed 7 | 1 4 1 1 Worker 1 | . 1 . . Hauler 1 | . 1 . . Recycler 2 | 1 1 . . Watcher 1 | . . 1 . Swarmer 7 | . 3 3 1 Grunt 14 | . 5 2 7 Sentry 2 | . . . 2 Best Kill Streak 4 | 1 4 4 3 Combat Bots Only 3 | . 3 2 3 Max Kills in Single Turn 1 | 1 1 1 1 Gunslinging . | . . . . Exploded . | . . . . Melee . | . . . . Uniques/NPCs Destroyed . | . . . . Combat | -11 -10 -9 -8 -------- Run | Yrd Mat Mat Mat Hostile Shots Fired 298 | . 53 36 209 Missed 74 | . 14 8 52 Damage Taken 2764 | . 370 248 2146 Core 688 | . 110 25 553 Absorbed by Shields . | . . . . Core Remaining (%) 83 | 100 56 93 . Volleys Fired 137 | 1 40 17 79 Largest 2 | 2 2 2 2 Hottest 85 | 40 40 65 85 Shots Fired 208 | 2 80 33 93 Gun 208 | 2 80 33 93 Cannon . | . . . . Launcher . | . . . . Special . | . . . . Kinetic 165 | 2 80 32 51 Thermal 43 | . . 1 42 Explosive . | . . . . Electromagnetic . | . . . . Robot Hit Streak 13 | 2 13 6 13 Robot Miss Streak 4 | . 4 3 4 Penetration Max . | . . . . Secondary Targets 2 | . 1 1 . Max Gunslinging Chain 1 | . 1 1 . Shots Hit Robots 142 | 2 50 20 70 Core Hits 67 | 2 28 9 28 Critical Kills 4 | . . 2 2 Critical Parts Destroyed . | . . . . Critical Strikes 5 | . . 2 3 Burn 1 | . . . 1 Destroy 4 | . . 2 2 Melee Attacks . | . . . . Impact . | . . . . Slashing . | . . . . Piercing . | . . . . Sneak Attacks . | . . . . Combat Hostiles . | . . . . Follow-up Attacks . | . . . . Damage Inflicted 1588 | 15 441 179 953 Guns 1588 | 15 441 179 953 Cannons . | . . . . Explosions . | . . . . Melee . | . . . . Ramming . | . . . . Kinetic 1042 | 15 441 179 407 Thermal 546 | . . . 546 Explosive . | . . . . Electromagnetic . | . . . . Impact . | . . . . Slashing . | . . . . Piercing . | . . . . Highest Corruption 6 | . . . 6 Average Corruption 3 | . . . 3 Corruption Purged . | . . . . Corruption Blocked . | . . . . Effects 9 | . . . 9 Message Errors 1 | . . . 1 Matter Fused 1 | . . . 1 Heat Flow Errors 2 | . . . 2 Energy Discharges 1 | . . . 1 Parts Rejected 1 | . . . 1 Data Loss (major) 3 | . . . 3 Overload Shots . | . . . . Overflow Damage . | . . . . Projectiles . | . . . . Explosions . | . . . . Melee . | . . . . Knockbacks . | . . . . Impact . | . . . . Kinetic . | . . . . Secondary . | . . . . Self-Inflicted Damage . | . . . . Shots . | . . . . Rammed . | . . . . Targets Rammed . | . . . . Kicked . | . . . . Crushed . | . . . . Highest Temperature 521 | . 16 18 521 Average Temperature 176 | . 7 7 198 Received Heat Transfer 1035 | . 132 30 873 Effects 12 | . . . 12 Shutdowns 5 | . . . 5 Energy Bleed 1 | . . . 1 Short Circuit 1 | . . . 1 Damage (minor) 3 | . . . 3 Damage (major) 1 | . . . 1 Damage (core) 1 | . . . 1 Siege Activations . | . . . . Robots Corrupted . | . . . . Combat Hostiles . | . . . . Parts Fried . | . . . . Impact Corruptions . | . . . . Robots Melted . | . . . . Combat Hostiles . | . . . . Parts Melted 2 | . . . 2 Heat Transferred 1369 | . . . 1369 Parts Sabotaged . | . . . . Parts Stolen . | . . . . Parts Stripped . | . . . . Power Chain Reactions . | . . . . Alert | -11 -10 -9 -8 ------- Run | Yrd Mat Mat Mat Peak Influence 249 | 5 242 249 201 Initial 102 | . 3 102 26 Average 127 | 1 131 158 110 Maximum Alert Level 1 | . 1 1 1 Low Security (%) 77 | 100 72 57 97 Level 1 22 | . 27 42 2 Level 2 . | . . . . Level 3 . | . . . . Level 4 . | . . . . Level 5 . | . . . . High Security . | . . . . Max Security . | . . . . Squads Dispatched 7 | . 4 . 3 Investigation 1 | . 1 . . Extermination . | . . . . Reinforcement 6 | . 3 . 3 Assault . | . . . . Garrison . | . . . . Intercept . | . . . . Searches Triggered . | . . . . Construction Impeded . | . . . . Haulers Reinforced . | . . . . Active Scanning Responses . | . . . . Cargo Convoy Interrupts . | . . . . Stealth | -11 -10 -9 -8 --------- Run | Yrd Mat Mat Mat Distress Signals 4 | . . 2 2 Communications Jammed . | . . . . Distress Signals . | . . . . Times Spotted 47 | . 12 11 24 Peak Tracking Total 10 | . 3 4 10 Tactical Retreats 3 | . . . 3 Traps | -11 -10 -9 -8 ------- Run | Yrd Mat Mat Mat Traps Triggered 5 | . 1 . 4 Indirectly . | . . . . Trap Hack Attempts . | . . . . Triggered . | . . . . Disarmed . | . . . . Reprogrammed . | . . . . Reused . | . . . . Traps Extracted . | . . . . Installed . | . . . . Triggered . | . . . . Machines | -11 -10 -9 -8 ---------- Run | Yrd Mat Mat Mat Machines Disabled . | . . . . Max in Single Turn . | . . . . Machines Repaired . | . . . . Machines Dismantled . | . . . . Machines Sabotaged . | . . . . Overloaded Fab Kills . | . . . . Hacking | -11 -10 -9 -8 --------- Run | Yrd Mat Mat Mat Machines Accessed 1 | . 1 . . Terminals 1 | . 1 . . Fabricators . | . . . . Repair Stations . | . . . . Recycling Units . | . . . . Scanalyzers . | . . . . Garrison Access . | . . . . Total Hacks 1 | . 1 . . Successful 1 | . 1 . . Failed . | . . . . Catastrophic . | . . . . Database Lockouts . | . . . . Manual . | . . . . Terminals 1 | . 1 . . Fabricators . | . . . . Repair Stations . | . . . . Recycling Units . | . . . . Scanalyzers . | . . . . Garrison Access . | . . . . Terminal Hacks 1 | . 1 . . Record 1 | . 1 . . Fabricator Hacks . | . . . . Repair Station Hacks . | . . . . Recycling Unit Hacks . | . . . . Scanalyzer . | . . . . Garrison Access Hacks . | . . . . Unauthorized Hacks . | . . . . Terminals . | . . . . Fabricators . | . . . . Repair Stations . | . . . . Recycling Units . | . . . . Scanalyzers . | . . . . Garrison Access . | . . . . Data Cores Recovered . | . . . . Used . | . . . . Hacking Detections . | . . . . Full Trace Events . | . . . . Feedback Events . | . . . . Feedback Blocked . | . . . . Robot Schematics Acquired . | . . . . Robots Built . | . . . . Authchips . | . . . . Time . | . . . . Total Robot Build Rating . | . . . . Part Schematics Acquired . | . . . . Parts Built . | . . . . Authchips . | . . . . Time . | . . . . Total Part Build Rating . | . . . . Parts Repaired . | . . . . Time . | . . . . Parts Recycled . | . . . . Recycled Matter . | . . . . Retrieved Matter . | . . . . Retrieved Components . | . . . . Parts Scanalyzed . | . . . . Part Schematics Acquired . | . . . . Parts Damaged . | . . . . Bothacking | -11 -10 -9 -8 ------------ Run | Yrd Mat Mat Mat Used RIF Installer . | . . . . Robots Hacked . | . . . . Non-combat . | . . . . Combat . | . . . . Robot Hacks Applied . | . . . . Relay Couplers Released . | . . . . Fabnet Peak Effective % . | . . . . Robots Rewired . | . . . . Allies Hacked . | . . . . Hacks Repelled . | . . . . Allies | -11 -10 -9 -8 -------- Run | Yrd Mat Mat Mat Total Allies . | . . . . Largest Group . | . . . . Highest-Rated Group . | . . . . Highest-Rated Ally . | . . . . Total Orders . | . . . . Ally Attacks . | . . . . Total Damage . | . . . . Kills . | . . . . Allies Corrupted . | . . . . Allies Melted . | . . . . Intel | -11 -10 -9 -8 ------- Run | Yrd Mat Mat Mat Robot Analysis Total . | . . . . Derelict Logs Recovered . | . . . . Drone Launches . | . . . . Drone Recoveries . | . . . . Exploration | -11 -10 -9 -8 ------------- Run | Yrd Mat Mat Mat Turns Passed 1228 | 68 235 479 446 Spaces Moved 516 | 34 80 242 160 Core 15 | 8 . . 7 Treads 501 | 26 80 242 153 Legs . | . . . . Wheels . | . . . . Hover . | . . . . Flight . | . . . . Fastest Speed 50 | 50 160 160 50 Average Speed 163 | 144 160 167 164 Slowest Speed 170 | 160 160 170 170 Overloaded Moves . | . . . . Propulsion Burnouts . | . . . . Robots Hopped . | . . . . Cave-ins Triggered . | . . . . Exploration Rate (%) 19 | 4 21 28 25 Regions Visited 3 Branch Regions . Pre-discovered Areas . | . . . . Known Exits Taken 1 | . . 1 . Unknown Exits Taken 2 | 1 1 . . Scrap Searched . | . . . . Spaces Dug . | . . . . Terrain Destroyed . | . . . . Melee . | . . . . Projectile . | . . . . AOE . | . . . . Terrain Rammed . | . . . . Walls Destroyed . | . . . . Machines Disabled . | . . . . Actions | -11 -10 -9 -8 --------- Run | Yrd Mat Mat Mat Total 730 | 52 123 292 263 Wait 19 | . . 12 7 Move 513 | 33 79 241 160 Hop . | . . . . Pick Up 25 | 11 2 8 4 Fast Attach . | . . . . Attach 19 | 6 1 2 10 Detach 1 | . . 1 . Swap 8 | . 1 4 3 Drop 8 | 1 . 7 . Fire 137 | 1 40 17 79 Melee . | . . . . Ram . | . . . . Kick . | . . . . Crush . | . . . . Escape Stasis . | . . . . Rewire . | . . . . Trap . | . . . . Miscellaneous . | . . . . Route ------- -11/Scrapyard -10/Materials -9/Materials -8/Materials History --------- Turn | Location | Event 10 | -11/Scrapyard | Discovered new exit (range 15) 69 | -11/Scrapyard | Entered Materials 250 | -10/Materials | Discovered new exit (range 5) 300 | -10/Materials | Build established: Mutant 304 | -10/Materials | Entered another Materials area 304 | -9/Materials | Evolved 2 slots: Utility x2 767 | -9/Materials | Discovered new exit (range 10) 781 | -9/Materials | Identified exit to Materials 783 | -9/Materials | Entered another Materials area 783 | -8/Materials | Evolved 2 slots: Power x1, Utility x1 1016 | -8/Materials | Lost 5 parts (2p2u1w) 1146 | -8/Materials | Core integrity fell below 50% 1166 | -8/Materials | Lost 5 parts (1p1n1u2w) 1213 | -8/Materials | Core integrity fell below 20% 1226 | -8/Materials | Lost 4 parts (3n1u) 1229 | -8/Materials | Destroyed by S-10 Pest with Light Assault Rifle Last Messages --------------- area. Critical hit (Burn: +37). Sml. Storage Unit destroyed. O-16 Technician: "IFF HANDSHAKE FAILED. SECURING TERMINAL." System corrupted: Arm. Treads rejected. ALERT: Hostiles spotted, dispatching reinforcements to Terminal M001. Arm. Treads destroyed. Lgt. Treads destroyed. System corrupted: Substantial component data lost. ALERT: Suspicious intruders detected, dispatching Cutter reinforcements to area. Acquired Prototype Ballistic Gun. Identified Enh. Autogun. S-10 Pest destroyed. Critical hit (Burn: +37). G-47 Trooper suffers critical hit (Destroy). G-47 Trooper destroyed. Map ----- +----------------------------------------------------+ | ???????????????????????????? | | ???????????????????????????? | | ???????????????????????????? | | ???????????????????????????? | | ???????????????????????????? | | ???????????????????????????? | | ???????????????????????????? | | ??????H????????????????????? | | ???????????????????????????? | | ???????????????????????????? | | ???????????????????????????? | | ???????????????????????????? | | ????????"??????????????????? | | ????????"??????????????????? | | ???????? ????????????# ##### | | ???????? ????????????# | | ???????#+#???????????+ | | ???????# #???????????# | | ???????# #????????????????## | | ######## #?????????????????? | | # ## #?????????######### | | # ## #?#######?# """ """ | | # *#[ # #?# """ """ | | # %+* # !! [ #?# """ """ | | # *# + !! #?# | | # @ # #####+###?# | | # # ### #??# | | # s ! #??# | | # # T #??# | | # ## ### #??#####+### | | # ## #?## ######## | | # ## #??# ### | | ########+#??# #?? | | ????????????# #?? | | ????????????# #?? | | ????????????# #?? | | ????????????# #?? | | ????????????+ ##T########?? | | ????????????# ####????????? | | ????????????# #???????????? | | ????????????# #???????????? | | ????????????# #???????????? | | ????????????# ????????????? | | ????????????# ????????????? | | ????????????# ????????????? | | ????????????###????????????? | | ???????????????????????????? | | ???????????????????????????? | | ???????????????????????????? | | ???????????????????????????? | +----------------------------------------------------+ Best States ------------- Heat Dissipation 31 Energy Generation 17 Energy Capacity 415 Matter Stores 300 Matter Capacity 300 Sight Range 16 Robot Scan Range 14 Terrain Scan Density 10 Armor Coverage 150 Evasion (%) 50 Recoil Reduction 2 Item Schematics ----------------- None Robot Schematics ------------------ None Fabricated ------------ Nothing Alien Tech Used ----------------- None Achievements -------------- None Challenges ------------ None Game ------ Seed MediumDerelictLog Manual? 0 Play Time 00:13:37 Cumulative 25.3 hours Start 2024.12.05 @ 15:17:26 End 2024.12.05 @ 15:29:34 Sessions 1 Manual Loads 0 Difficulty Rogue Special Mode None Game No. 47 Rogue 47 Adventurer 0 Explorer 0 Win Type - Total 0 Types 0/0/0/0/0/0/0/0/0 Lore% 16 Gallery% 24 Achievement% 19 Wizard Run 0 Options --------- Layout 1 ASCII 0 Keyboard 0 Movement Mouse Keybinds 0 Fullscreen 1 Font 24/Terminus Map View 50x35 Zoom Use 1% Tactical HUD 0 Map Filters NONE Filters NONE Steam 1 RUN: 9b23ac9a-2d3d-4149-8dec-6ed42e782559